bitfinex-derivatives/quotes_ETHF0:USTF0_20210401
["timestamp","ask_amount","ask_price","bid_price","bid_amount"]
[1617259868938,0.03026556,1922.7,1922.6,69.2196]
[1617259869138,2.93721556,1922.7,1922.6,69.2196]
[1617259869339,2.96748224,1922.7,1922.6,69.2196]
[1617259872245,2.96748224,1922.7,1922.6,119.2196]
[1617259873144,2.96748224,1922.7,1922.6,50.0]
[1617259873547,3.36096793,1922.7,1922.6,50.0]
[1617259873945,3.20962862,1922.7,1922.6,50.0]
[1617259874346,3.36097173,1922.7,1922.6,50.0]
[1617259874749,3.20962862,1922.7,1922.6,50.0]
[1617259875347,89.83952862,1922.7,1922.6,50.0]
[1617259876148,33.05828934,1922.7,1922.6,45.8959]
[1617259876346,33.05828934,1922.7,1922.6,32.7265]
[1617259876548,33.05828934,1922.7,1922.6,21.0075]
[1617259876549,33.39127171,1922.7,1922.6,21.0075]
[1617259876747,33.39127171,1922.7,1922.6,17.1329]
[1617259876948,32.90695,1922.7,1922.6,14.588]
[1617259877148,33.87570692,1922.7,1922.6,14.588]
[1617259877948,2.90695,1922.7,1922.6,14.588]
[1617259878154,2.90695,1922.7,1922.6,14.3056]
[1617259878348,2.90695,1922.7,1922.6,13.7956]
[1617259878548,3.39032298,1922.7,1922.6,13.7956]
[1617259878950,2.90695,1922.7,1922.6,13.7956]
[1617259879549,2.90695,1922.7,1922.6,13.5662]
[1617259879750,2.90695,1922.7,1922.6,13.4234]
[1617259879952,3.6327777,1922.7,1922.6,13.4234]
[1617259880149,3.6327777,1922.7,1922.6,13.1784]
[1617259880349,33.6327777,1922.7,1922.6,12.9396]
[1617259880750,33.6327777,1922.7,1922.6,12.4226]
[1617259880950,32.90695,1922.7,1922.6,12.4226]
[1617259881753,32.90695,1922.7,1922.6,11.1274]
[1617259881954,32.90695,1922.7,1922.6,9.3094]
[1617259882854,32.90695,1922.7,1922.6,8.2594]
[1617259883055,32.90695,1922.7,1922.6,7.2294]
[1617259883654,33.8747613,1922.7,1922.6,7.2294]
[1617259884053,33.8747613,1922.7,1922.6,6.287]
[1617259884253,33.8747613,1922.7,1922.6,5.6344]
[1617259884653,33.8747613,1922.7,1922.6,2.1161]
[1617259884854,33.8747613,1922.7,1922.6,1.3042]
[1617259885056,33.8747613,1922.7,1921.1,1.1516]
[1617259885254,0.9678113,1922.7,1922.3,66.9214]
[1617259885454,0.48389799,1922.4,1922.3,66.9214]
[1617259885654,1.53019799,1922.4,1922.3,66.9214]
[1617259886654,1.53019799,1922.4,1922.3,66.7743]
[1617259886855,1.53019799,1922.4,1922.3,65.6134]
[1617259887355,4.43714799,1922.4,1922.3,65.6134]
[1617259887956,4.43714799,1922.4,1921.7,1.2885]
[1617259888156,78.29304799,1922.4,1921.6,73.8559]
[1617259889057,0.03020352,1922.1,1921.6,73.8559]
[1617259889257,2.90695,1921.7,1921.6,73.8559]
[1617259893466,2.90695,1921.7,1921.2,2.90695]
[1617259894068,0.03021949,1922.1,1921.2,34.90695]
[1617259894268,0.03021775,1922.2,1921.7,67.183]
[1617259894669,0.03021383,1922.4,1921.7,67.183]
[1617259894870,0.03021383,1922.4,1921.7,69.183]
[1617259895071,0.03021235,1922.6,1921.7,69.183]
[1617259895270,0.03021235,1922.6,1922.2,2.90695]
[1617259895668,2.61421111,1922.7,1922.2,4.27965]
[1617259897371,2.90695,1922.3,1922.2,4.27965]
[1617259898372,2.90695,1922.3,1922.2,1.3727]
[1617259899875,2.90695,1922.3,1921.9,2.90695]
[1617259900272,2.90695,1922.3,1922.0,71.0652]
[1617259900871,2.93721399,1922.3,1922.0,71.0652]
[1617259901472,2.90695,1922.1,1922.0,71.0652]
[1617259901874,2.93721723,1922.1,1922.0,71.0652]
[1617259903075,2.93721723,1922.1,1921.2,14.181]
[1617259903273,2.96748541,1922.1,1921.2,14.181]
[1617259903473,0.03026803,1922.0,1921.4,2.90695]
[1617259904674,0.03026924,1921.9,1921.4,2.90695]
[1617259905374,2.90695,1921.5,1921.3,74.1269]
[1617259908076,3.93515,1921.5,1921.3,74.1269]
[1617259908278,2.90695,1921.5,1921.3,74.1269]
[1617259909477,2.90695,1921.5,1921.4,2.90695]
[1617259910079,2.9220939,1921.5,1921.4,2.90695]
[1617259910882,2.90695,1921.5,1921.4,2.90695]
[1617259913483,2.90695,1921.5,1921.3,74.1269]
[1617259922491,2.92208496,1921.5,1921.3,74.1269]
[1617259923292,2.90695,1921.5,1921.3,74.1269]
[1617259924493,2.92207939,1921.5,1921.3,74.1269]
[1617259925695,2.90695,1921.5,1921.3,74.1269]
[1617259926095,2.92207946,1921.5,1921.3,74.1269]
[1617259930300,2.90695,1921.5,1921.3,74.1269]
[1617259930701,2.92207835,1921.5,1921.3,74.1269]
[1617259932401,0.01513722,1921.4,1921.3,74.1269]
[1617259935704,0.01513722,1921.4,1921.3,124.1269]
[1617259935904,0.03027598,1921.4,1921.3,124.1269]
[1617259938706,0.03027598,1921.4,1921.3,50.0]
[1617259939109,0.06055498,1921.4,1921.3,50.0]
[1617259940008,72.60455498,1921.4,1921.3,50.0]
[1617259940209,72.57425613,1921.4,1921.3,50.0]
[1617259940408,72.57425613,1921.4,1921.3,49.2728]
[1617259940608,72.57425613,1921.4,1921.3,48.9992]
[1617259940909,72.60451367,1921.4,1921.3,48.9992]
[1617259942710,102.60451367,1921.4,1921.3,48.9992]
[1617259943514,72.60451367,1921.4,1921.3,48.9992]
[1617259943814,72.69529444,1921.4,1921.3,48.9992]
[1617259944516,72.84680163,1921.4,1921.3,48.9992]
[1617259944916,72.9982022,1921.4,1921.3,48.9992]
[1617259945316,72.84680163,1921.4,1921.3,48.9992]
[1617259945716,72.99820287,1921.4,1921.3,48.9992]
[1617259945916,72.84680163,1921.4,1921.3,48.9992]
[1617259946317,72.99820327,1921.4,1921.3,48.9992]
[1617259946717,72.84680163,1921.4,1921.3,48.9992]
[1617259948721,74.45350163,1921.4,1921.3,48.9992]
[1617259948922,74.63518848,1921.4,1921.3,48.9992]
[1617259950022,74.1507,1921.4,1921.3,48.9992]
[1617259950622,104.1507,1921.4,1921.3,48.9992]
[1617259950822,74.1507,1921.4,1921.3,48.9992]
[1617259951224,104.1507,1921.4,1921.3,48.9992]
[1617259951423,74.1507,1921.4,1921.3,48.7192]
[1617259951727,74.6348144,1921.4,1921.3,48.7192]
[1617259952228,74.6348144,1921.4,1921.3,46.3805]
[1617259952629,74.6348144,1921.4,1921.3,46.3134]
[1617259952827,104.6348144,1921.4,1921.3,46.3134]
[1617259955729,104.1507,1921.4,1921.3,46.3134]
[1617259955929,104.1507,1921.4,1921.3,45.2596]
[1617259956629,104.87807026,1921.4,1921.3,45.2596]
[1617259958434,104.1507,1921.4,1921.3,45.2596]
[1617259959836,104.87807719,1921.4,1921.3,45.2596]
[1617259963839,105.12063892,1921.4,1921.3,45.2596]
[1617259964239,104.87753089,1921.4,1921.3,45.2596]
[1617259966240,0.72683089,1921.4,1921.3,45.2596]
[1617259966640,2.90695,1921.5,1921.4,83.4262]
[1617259966641,3.63373447,1921.5,1921.4,83.4262]
[1617259966842,3.39141041,1921.5,1921.4,83.4262]
[1617259967241,3.69419351,1921.5,1921.4,83.4262]
[1617259967441,4.2590331,1921.5,1921.4,83.4262]
[1617259967642,3.2097331,1921.5,1921.4,83.4262]
[1617259967842,3.05828994,1921.5,1921.4,83.4262]
[1617259968943,3.05828994,1921.5,1921.3,45.2596]
[1617259969543,0.06053438,1921.4,1921.3,45.2596]
[1617259971548,0.15133951,1921.4,1921.3,45.2596]
[1617259971949,0.06053677,1921.4,1921.3,45.2596]
[1617259972351,0.15134348,1921.4,1921.3,45.2596]
[1617259972552,1.18904348,1921.4,1921.3,45.2596]
[1617259975760,1.5222068,1921.4,1921.3,45.2596]
[1617259977459,1.0377,1921.4,1921.3,45.2596]
[1617259977858,1.52221891,1921.4,1921.3,45.2596]
[1617259978158,1.0377,1921.4,1921.3,45.2596]
[1617259978958,1.52206264,1921.4,1921.3,45.2596]
[1617259981461,1.0377,1921.4,1921.3,45.2596]
[1617259982061,1.52206621,1921.4,1921.3,45.2596]
[1617259982862,0.48436621,1921.4,1921.3,45.2596]
[1617259983062,0.30270052,1921.4,1921.3,45.2596]
[1617259983464,0.1513467,1921.4,1921.3,45.2596]
[1617259984765,0.06053765,1921.4,1921.3,45.2596]
[1617259985766,0.06053765,1921.4,1921.3,44.1148]
[1617259986568,0.03026577,1921.4,1921.3,44.1148]
[1617259987375,0.01514117,1921.4,1921.3,44.1148]
[1617259987976,2.93723234,1921.5,1921.3,44.1148]
[1617259987977,2.92209077,1921.5,1921.3,44.1148]
[1617259988377,2.92209077,1921.5,1921.4,2.90695]
[1617259989478,2.90695,1921.5,1921.4,2.90695]
[1617259990079,3.05875783,1921.5,1921.4,2.90695]
[1617259990778,3.36237375,1921.5,1921.4,2.90695]
[1617259991880,3.05875783,1921.5,1921.4,2.90695]
[1617259998889,3.11946853,1921.5,1921.4,2.90695]
[1617259999189,2.9676607,1921.5,1921.4,2.90695]
[1617260000090,3.05873007,1921.5,1921.4,2.90695]
[1617260000290,3.11944174,1921.5,1921.4,2.90695]
[1617260000690,2.96766167,1921.5,1921.4,2.90695]
[1617260001091,3.2105706,1921.5,1921.4,2.90695]
[1617260001992,45.93774069,1922.3,1921.4,2.90695]
[1617260002192,45.93774069,1922.3,1921.5,84.85]
[1617260002392,48.06616394,1922.3,1921.6,2.90695]
[1617260002993,45.93774069,1922.3,1921.6,2.90695]
[1617260003593,48.06624326,1922.3,1921.6,2.90695]
[1617260004296,2.1284702,1922.2,1921.6,2.90695]
[1617260004494,2.90695,1921.7,1921.6,2.90695]
[1617260005597,2.90695,1921.7,1921.6,52.90695]
[1617260006599,2.90695,1921.7,1921.6,50.0]
[1617260006801,2.90695,1921.7,1921.6,49.8101]
[1617260007399,2.90695,1921.7,1921.6,99.8101]
[1617260007600,2.90695,1921.7,1921.6,98.779]
[1617260010401,2.90695,1921.7,1921.6,48.779]
[1617260011905,2.90695,1921.7,1921.6,50.1007]
[1617260012905,2.90695,1921.7,1921.6,48.779]
[1617260013906,77.41355,1921.7,1921.6,48.779]
[1617260016511,78.54415,1921.7,1921.6,48.779]
[1617260016710,4.03755,1921.7,1921.6,48.779]
[1617260017511,7.08201013,1921.7,1921.6,48.779]
[1617260018812,4.95260652,1921.7,1921.6,48.779]
[1617260019013,3.82200652,1921.7,1921.6,48.779]
[1617260019215,5.95140288,1921.7,1921.6,48.779]
[1617260019414,78.24850288,1921.7,1921.6,48.779]
[1617260019914,83.1286335,1921.7,1921.6,48.779]
[1617260020814,82.02933714,1921.7,1921.6,48.779]
[1617260021013,84.15871603,1921.7,1921.6,48.779]
[1617260022016,82.02933714,1921.7,1921.6,48.779]
[1617260022414,84.15873375,1921.7,1921.6,48.779]
[1617260023717,83.12863375,1921.7,1921.6,48.779]
[1617260024519,80.99923714,1921.7,1921.6,48.779]
[1617260025720,83.12862118,1921.7,1921.6,48.779]
[1617260026120,80.99923714,1921.7,1921.6,48.779]
[1617260027026,83.12863969,1921.7,1921.6,48.779]
[1617260027225,83.12863969,1921.7,1921.6,48.5622]
[1617260028630,83.12863969,1921.7,1921.6,47.7827]
[1617260028828,80.99923714,1921.7,1921.6,47.7827]
[1617260030730,83.12854058,1921.7,1921.6,47.7827]
[1617260031832,83.12854058,1921.7,1921.6,47.1713]
[1617260032535,80.99923714,1921.7,1921.6,47.1713]
[1617260035637,83.12857671,1921.7,1921.6,47.1713]
[1617260036137,80.99923714,1921.7,1921.6,47.1713]
[1617260036937,80.99923714,1921.7,1921.6,46.7856]
[1617260037138,83.12853548,1921.7,1921.6,46.7856]
[1617260040342,80.99923714,1921.7,1921.6,46.7856]
[1617260040641,80.99923714,1921.7,1921.6,45.7488]
[1617260041843,84.03979246,1921.7,1921.6,45.7488]
[1617260043246,80.99923714,1921.7,1921.6,45.7488]
[1617260043749,84.03984455,1921.7,1921.6,45.7488]
[1617260044348,11.74274455,1921.7,1921.6,45.7488]
[1617260044748,11.74274455,1921.7,1921.6,44.9788]
[1617260045148,6.86261393,1921.7,1921.6,44.2598]
[1617260045351,6.86261393,1921.7,1921.6,43.2574]
[1617260045550,3.82200652,1921.7,1921.6,43.2574]
[1617260045749,3.82200652,1921.7,1921.6,40.1118]
[1617260045951,3.82200652,1921.7,1921.6,39.8049]
[1617260046250,8.07795225,1921.7,1921.6,39.8049]
[1617260047652,8.07795225,1921.7,1921.6,38.7649]
[1617260048052,3.82200652,1921.7,1921.6,38.7649]
[1617260048452,8.07819056,1921.7,1921.6,38.7649]
[1617260048753,9.29852929,1921.7,1921.6,38.7649]
[1617260049153,73.4330885,1921.7,1921.6,38.5764]
[1617260049354,84.503897,1921.7,1921.6,38.5764]
[1617260049554,84.503897,1921.7,1921.6,37.7436]
[1617260050456,80.24772657,1921.7,1921.6,37.7436]
[1617260052355,16.73832657,1921.7,1921.6,37.7436]
[1617260052555,12.96450507,1921.7,1921.6,37.7436]
[1617260052958,5.95110986,1921.7,1921.6,37.7436]
[1617260056357,5.95110986,1921.7,1921.6,101.4552]
[1617260056957,3.82200652,1921.7,1921.6,101.4552]
[1617260057557,6.86290217,1921.7,1921.6,101.3654]
[1617260057757,6.86290217,1921.7,1921.6,37.6538]
[1617260058159,6.86290217,1921.7,1921.6,37.5581]
[1617260058358,3.82200652,1921.7,1921.6,36.5171]
[1617260058558,33.82200652,1921.7,1921.6,36.5171]
[1617260058759,33.82200652,1921.7,1921.6,36.3869]
[1617260058959,39.92323053,1921.7,1921.6,36.3869]
[1617260060360,44.17953924,1921.7,1921.6,36.3869]
[1617260062060,14.17953924,1921.7,1921.6,36.3027]
[1617260062860,8.07831523,1921.7,1921.6,36.3027]
[1617260063263,8.07831523,1921.7,1921.6,34.7343]
[1617260063461,3.82200652,1921.7,1921.6,34.7343]
[1617260066766,3.82200652,1921.7,1921.6,34.2872]
[1617260066965,3.82200652,1921.7,1921.6,32.7153]
[1617260068166,3.82200652,1921.7,1921.6,31.6783]
[1617260068565,9.92385076,1921.7,1921.6,31.6783]
[1617260068965,5.04237537,1921.7,1921.6,31.6783]
[1617260069367,3.82200652,1921.7,1921.6,31.6783]
[1617260069767,9.92386226,1921.7,1921.6,31.6783]
[1617260070170,3.82200652,1921.7,1921.6,31.6783]
[1617260070470,6.8615916,1921.7,1921.6,31.6783]
[1617260070669,68.9060916,1921.7,1921.6,31.6783]
[1617260071468,75.00797177,1921.7,1921.6,31.6783]
[1617260071768,71.96838669,1921.7,1921.6,31.6783]
[1617260072770,71.96838669,1921.7,1921.6,30.6483]
[1617260074170,101.96838669,1921.7,1921.6,29.6163]
[1617260074971,71.96838669,1921.7,1921.6,29.6163]
[1617260075170,75.00760995,1921.7,1921.6,29.6163]
[1617260077573,75.00760995,1921.7,1921.6,28.5929]
[1617260082279,12.96310995,1921.7,1921.6,28.5929]
[1617260082679,6.86122978,1921.7,1921.6,27.9366]
[1617260083683,3.82200652,1921.7,1921.6,27.9366]
[1617260084083,6.86094134,1921.7,1921.6,27.9366]
[1617260085085,8.07901045,1921.7,1921.6,27.9366]
[1617260088786,8.07901045,1921.7,1921.6,94.8639]
[1617260089190,3.82200652,1921.7,1921.6,94.8639]
[1617260089590,3.82200652,1921.7,1921.6,93.0713]
[1617260090892,3.82200652,1921.7,1921.6,92.0413]
[1617260091494,9.29527561,1921.7,1921.6,92.0413]
[1617260092593,9.29527561,1921.7,1921.6,91.0003]
[1617260092994,15.39764347,1921.7,1921.6,91.0003]
[1617260093294,9.29527561,1921.7,1921.6,91.0003]
[1617260094395,9.29527561,1921.7,1921.6,82.4464]
[1617260094797,9.29527561,1921.7,1921.6,79.0632]
[1617260094997,9.29527561,1921.7,1921.6,75.5947]
[1617260095198,9.29527561,1921.7,1921.6,5.1186]
[1617260095398,3.82200652,1921.7,1921.6,1.496]
[1617260095797,3.82200652,1921.7,1921.6,0.7245]
[1617260097597,9.92447063,1921.7,1921.6,0.7245]
[1617260097798,10.51932127,1921.7,1921.6,0.7245]
[1617260098197,10.51932127,1921.7,1921.6,0.2164]
[1617260098997,10.51932127,1921.7,1921.6,50.2164]
[1617260099498,3.82200652,1921.7,1921.6,50.2164]
[1617260099698,85.39440652,1921.7,1921.6,50.2164]
[1617260100198,98.5513619,1921.7,1921.6,50.2164]
[1617260101599,105.24858938,1921.7,1921.6,50.2164]
[1617260101800,105.24858938,1921.7,1921.6,47.8821]
[1617260101998,105.24858938,1921.7,1921.6,46.6424]
[1617260102198,105.24858938,1921.7,1921.6,45.8186]
[1617260102199,23.67618938,1921.7,1921.6,45.8186]
[1617260102599,10.519234,1921.7,1921.6,45.8186]
[1617260103399,10.519234,1921.7,1921.6,44.2481]
[1617260103798,10.519234,1921.7,1921.6,41.1134]
[1617260103999,10.519234,1921.7,1921.6,40.2541]
[1617260104200,3.82200652,1921.7,1921.6,36.4513]
[1617260104402,3.82200652,1921.7,1921.6,29.7221]
[1617260105001,3.82200652,1921.7,1921.6,27.6861]
[1617260105601,3.82200652,1921.7,1921.6,27.5516]
[1617260105804,3.82200652,1921.7,1921.6,27.2528]
[1617260106002,3.82200652,1921.7,1921.6,25.3711]
[1617260106606,3.82200652,1921.7,1921.6,24.9645]
[1617260106807,3.82200652,1921.7,1921.6,24.5675]
[1617260107207,3.82200652,1921.7,1921.6,23.8102]
[1617260107408,3.82200652,1921.7,1921.6,23.7048]
[1617260107608,3.82200652,1921.7,1921.6,22.6248]
[1617260107809,3.82200652,1921.7,1921.6,21.9469]
[1617260108210,3.82200652,1921.7,1921.6,20.5525]
[1617260108412,39.9249067,1921.7,1921.6,17.3494]
[1617260109010,39.9249067,1921.7,1921.6,16.5774]
[1617260109211,39.9249067,1921.7,1921.6,14.4137]
[1617260109412,39.9249067,1921.7,1921.6,14.211]
[1617260109615,39.9249067,1921.7,1921.6,11.7971]
[1617260110113,39.9249067,1921.7,1921.6,11.6932]
[1617260110313,39.9249067,1921.7,1921.6,8.4985]
[1617260110913,39.9249067,1921.7,1921.6,8.3966]
[1617260111113,39.9249067,1921.7,1921.6,7.6786]
[1617260111815,39.9249067,1921.7,1921.6,7.5781]
[1617260112015,39.9249067,1921.7,1921.6,6.5381]
[1617260113215,124.6787067,1921.7,1921.6,6.1621]
[1617260113415,94.6787067,1921.7,1921.6,6.0937]
[1617260113617,9.9249067,1921.7,1921.6,6.0937]
[1617260113816,17.07218101,1921.7,1921.6,6.0937]
[1617260114417,2.90695,1921.7,1921.6,6.0937]
[1617260114617,2.90695,1921.7,1921.6,7.7496]
[1617260114819,11.73661577,1921.7,1921.6,7.7496]
[1617260115218,10.5161549,1921.7,1921.6,7.7496]
[1617260116820,10.5161549,1921.7,1921.6,6.0937]
[1617260118021,3.82229565,1921.7,1921.6,6.0937]
[1617260119423,10.51863098,1921.7,1921.6,6.0937]
[1617260120824,3.82229565,1921.7,1921.6,6.0937]
[1617260121025,3.82229565,1921.7,1921.6,70.6861]
[1617260121726,3.82229565,1921.7,1921.6,69.1318]
[1617260123928,3.82229565,1921.7,1921.6,66.929]
[1617260124529,33.82229565,1921.7,1921.6,2.3366]
[1617260124729,39.92480719,1921.7,1921.6,1.3086]
[1617260125131,39.92480719,1921.7,1921.6,1.1006]
[1617260125330,39.92480719,1921.7,1921.6,0.9293]
[1617260126931,41.73832089,1921.7,1921.6,0.9293]
[1617260127132,47.84149724,1921.7,1921.6,0.1785]
[1617260127531,35.04293092,1921.7,1920.6,84.6478]
[1617260127734,68.8877,1921.6,1920.6,84.6478]
[1617260127931,30.0,1921.5,1920.6,84.6478]
[1617260128131,31.0562,1921.5,1920.6,84.6478]
[1617260128331,5.85831611,1920.8,1919.4,2.90695]
[1617260128531,81.3023,1920.2,1919.5,81.3023]
[1617260128731,82.532,1920.2,1919.5,81.3023]
[1617260128931,0.73055127,1919.7,1919.5,81.3023]
[1617260129531,2.90695,1919.6,1919.5,81.3023]
[1617260130433,2.90695,1919.6,1919.4,2.90695]
[1617260130631,3.3933984,1919.6,1919.4,2.90695]
[1617260130831,66.2986,1919.4,1919.1,66.2986]
[1617260131233,0.15203406,1919.2,1919.1,66.2986]
[1617260131632,3.05898406,1919.2,1919.1,65.2486]
[1617260132034,2.90695,1919.2,1919.1,65.2486]
[1617260132234,4.8272308,1919.2,1919.1,65.2486]
[1617260132634,4.8272308,1919.2,1919.1,115.2486]
[1617260133037,4.09735,1919.2,1919.1,114.2186]
[1617260133634,2.90695,1919.2,1919.1,114.2186]
[1617260134935,2.90695,1919.2,1919.1,50.0]
[1617260135134,4.22665,1919.2,1919.1,49.323]
[1617260136536,2.90695,1919.2,1919.1,49.323]
[1617260137740,5.03936662,1919.2,1919.1,49.323]
[1617260138341,5.03936662,1919.2,1919.1,48.6567]
[1617260138739,2.90695,1919.2,1919.1,48.6567]
[1617260138939,2.90695,1919.2,1919.1,47.6267]
[1617260139140,5.03941382,1919.2,1919.1,47.6267]
[1617260139540,5.03941382,1919.2,1919.1,47.3652]
[1617260139742,2.90695,1919.2,1919.1,47.3652]
[1617260140440,2.90695,1919.2,1919.1,46.3363]
[1617260140640,2.90695,1919.2,1919.1,44.6774]
[1617260140842,2.90695,1919.2,1919.1,44.5614]
[1617260140843,9.01475251,1919.2,1919.1,44.5614]
[1617260141041,4.1285105,1919.2,1919.1,42.3934]
[1617260141842,5.33889703,1919.2,1919.1,42.3934]
[1617260142041,4.11733653,1919.2,1919.1,42.3934]
[1617260142444,2.90695,1919.2,1919.1,42.3934]
[1617260143245,2.90695,1919.2,1919.1,41.0757]
[1617260143646,2.90695,1919.2,1919.1,40.9461]
[1617260145048,2.90695,1919.2,1919.1,39.8958]
[1617260145248,4.11698181,1919.2,1919.1,39.8958]
[1617260145448,2.90695,1919.2,1919.1,39.1768]
[1617260145647,2.90695,1919.2,1919.1,38.6416]
[1617260146049,2.90695,1919.2,1919.1,37.5276]
[1617260146249,35.0276939,1919.2,1919.1,35.4606]
[1617260146648,35.0276939,1919.2,1919.1,34.4231]
[1617260146948,41.13661795,1919.2,1919.1,34.4231]
[1617260147147,41.13661795,1919.2,1919.1,32.576]
[1617260147348,41.13661795,1919.2,1919.1,32.3258]
[1617260147551,41.13661795,1919.2,1919.1,26.0169]
[1617260147948,39.01587405,1919.2,1919.1,25.4673]
[1617260148149,39.01587405,1919.2,1919.1,24.7731]
[1617260148349,42.04464187,1919.2,1919.1,24.7731]
[1617260148753,42.04464187,1919.2,1919.1,23.1251]
[1617260149152,42.04464187,1919.2,1919.1,21.5842]
[1617260149553,39.01587405,1919.2,1919.1,20.137]
[1617260149754,39.01587405,1919.2,1919.1,19.3791]
[1617260150254,39.01587405,1919.2,1919.1,19.0901]
[1617260150454,39.01587405,1919.2,1919.1,16.49]
[1617260150654,39.01587405,1919.2,1919.1,15.6968]
[1617260150856,39.01587405,1919.2,1919.1,14.8668]
[1617260151254,39.01587405,1919.2,1919.1,14.0927]
[1617260151655,39.01587405,1919.2,1919.1,11.7442]
[1617260152656,39.01587405,1919.2,1919.1,91.2459]
[1617260152855,41.12933674,1919.2,1919.1,91.2459]
[1617260153055,11.12933674,1919.2,1919.1,91.2459]
[1617260153658,32.90695,1919.2,1919.1,91.2459]
[1617260153856,32.90695,1919.2,1919.1,3.4442]
[1617260154257,39.01636663,1919.2,1919.1,3.4442]
[1617260154656,39.01636663,1919.2,1919.1,2.6556]
[1617260154857,39.01636663,1919.2,1919.1,1.7117]
[1617260155057,41.12889729,1919.2,1919.1,1.7117]
[1617260155458,39.01636663,1919.2,1919.1,1.7117]
[1617260155658,41.12894391,1919.2,1919.1,1.1926]
[1617260156460,83.894,1919.1,1918.5,3.5518]
[1617260156662,30.0,1919.0,1918.5,3.5518]
[1617260156860,0.72327907,1918.7,1918.5,3.5518]
[1617260157259,0.72327907,1918.7,1918.5,3.3066]
[1617260157462,0.72328176,1918.6,1918.5,3.3066]
[1617260157863,3.63023176,1918.6,1918.5,3.3066]
[1617260158260,4.54666038,1918.6,1918.5,3.3066]
[1617260159161,4.54666038,1918.6,1918.5,0.4258]
[1617260159763,69.055,1918.2,1918.0,75.8362]
[1617260159963,69.055,1918.2,1918.0,74.9697]
[1617260160164,0.06027624,1918.1,1918.0,74.3723]
[1617260160863,0.15068975,1918.1,1918.0,74.3723]
[1617260161064,0.15068975,1918.1,1918.0,73.0838]
[1617260161466,1.18478975,1918.1,1918.0,73.0838]
[1617260161665,1.09437575,1918.1,1918.0,73.0838]
[1617260161866,2.96722575,1918.1,1918.0,73.0838]
[1617260162867,4.01422575,1918.1,1918.0,73.0838]
[1617260163065,2.96722575,1918.1,1918.0,73.0838]
[1617260163569,3.05764561,1918.1,1918.0,73.0838]
[1617260163968,2.90695,1918.1,1918.0,73.0838]
[1617260164167,3.94505,1918.1,1918.0,73.0838]
[1617260164369,2.90695,1918.1,1918.0,73.0838]
[1617260164769,3.05759002,1918.1,1918.0,73.0838]
[1617260165169,2.96710758,1918.1,1917.0,2.90695]
[1617260165371,70.814,1917.5,1917.0,2.90695]
[1617260165769,2.90695,1917.1,1917.0,2.90695]
[1617260167273,2.90695,1917.1,1917.0,70.70875]
[1617260171374,2.90695,1917.1,1917.0,2.90695]
[1617260171775,89.67725,1917.1,1917.0,2.90695]
[1617260171973,89.66955,1917.1,1917.0,2.90695]
[1617260173781,2.89925,1917.1,1917.0,2.90695]
[1617260174183,2.89925,1917.1,1917.0,82.43515]
[1617260174984,2.89925,1917.1,1917.0,132.43515]
[1617260175185,2.89925,1917.1,1917.0,129.5282]
[1617260177286,2.89925,1917.1,1917.0,50.0]
[1617260177688,85.96905,1917.1,1917.0,50.0]
[1617260181391,2.89925,1917.1,1917.0,50.0]
[1617260181590,2.89925,1917.1,1917.0,130.9646]
[1617260182391,2.89925,1917.1,1917.0,50.0]
[1617260182991,72.06565,1917.1,1917.0,50.0]
[1617260183592,73.69215,1917.1,1917.0,50.0]
[1617260184692,72.06565,1917.1,1917.0,50.0]
[1617260185493,2.89925,1917.1,1917.0,50.0]
[1617260187294,72.25145,1917.1,1917.0,50.0]
[1617260187495,73.39215,1917.1,1917.0,50.0]
[1617260190097,73.39215,1917.1,1917.0,49.0213]
[1617260191399,73.39215,1917.1,1917.0,48.6105]
[1617260194202,73.39215,1917.1,1917.0,47.0567]
[1617260195504,73.39215,1917.1,1917.0,46.2718]
[1617260195702,72.25145,1917.1,1917.0,46.2718]
[1617260196102,72.25145,1917.1,1917.0,46.1742]
[1617260196303,72.25145,1917.1,1917.0,41.3401]
[1617260196506,103.32795,1917.1,1917.0,41.3401]
[1617260196704,3.97575,1917.1,1917.0,39.2922]
[1617260196905,33.97575,1917.1,1917.0,36.1502]
[1617260197107,33.97575,1917.1,1917.0,35.5857]
[1617260197705,33.97575,1917.1,1917.0,33.2821]
[1617260197904,33.97575,1917.1,1917.0,32.296]
[1617260198107,33.97575,1917.1,1917.0,30.2089]
[1617260198305,33.97575,1917.1,1917.0,26.2845]
[1617260198706,33.97575,1917.1,1917.0,22.4967]
[1617260198905,33.97575,1917.1,1917.0,20.6934]
[1617260199107,33.97575,1917.1,1917.0,18.2496]
[1617260199305,33.97575,1917.1,1917.0,17.1672]
[1617260199505,33.97575,1917.1,1917.0,16.0628]
[1617260200906,33.97575,1917.1,1917.0,15.7558]
[1617260201106,33.97575,1917.1,1917.0,9.8371]
[1617260201306,33.97575,1917.1,1917.0,8.7522]
[1617260201506,33.97575,1917.1,1917.0,6.7355]
[1617260201706,33.97575,1917.1,1917.0,5.8004]
[1617260201907,33.97575,1917.1,1917.0,1.9445]
[1617260202308,33.97575,1917.1,1917.0,1.2623]
[1617260202509,33.97575,1917.1,1917.0,0.0001]
[1617260202707,33.97575,1917.1,1915.5,79.8657]
[1617260202908,73.8162,1916.2,1915.5,79.8657]
[1617260203108,1.3843,1916.3,1915.2,2.90695]
[1617260203308,1.3843,1916.3,1915.5,81.1807]
[1617260204009,81.1807,1916.4,1915.5,81.1807]
[1617260204207,2.90695,1915.6,1915.5,81.1807]
[1617260204408,2.90695,1915.6,1915.2,2.90695]
[1617260205607,2.90695,1915.6,1915.1,67.4291]
[1617260206207,67.4291,1915.8,1915.1,67.4291]
[1617260206208,2.90695,1915.2,1915.1,67.4291]
[1617260207410,2.90695,1915.2,1914.7,32.90695]
[1617260207612,77.3691,1915.1,1914.7,32.90695]
[1617260208209,2.90695,1914.8,1914.7,32.90695]
[1617260208411,2.90695,1914.8,1914.7,2.90695]